fUST/lending_fUST_20251004
["ID","MTS","AMOUNT","RATE_DAILY","PERIOD"]
[389021840,1759564252126,-500.0,0.00022191,3]
[389021841,1759564252135,-151.0,0.00022191,7]
[389021842,1759564252144,-500.0,0.00022191,3]
[389021843,1759564252152,-225.144456,0.00022191,7]
[389021844,1759564252162,-500.0,0.00022191,3]
[389021845,1759564252171,-1264.95,0.00022191,3]
[389021846,1759564252180,-1125.53,0.00022191,3]
[389021847,1759564252189,-500.0,0.00022191,3]
[389021848,1759564252198,-151.0,0.00022191,7]
[389021849,1759564252207,-500.0,0.00022191,3]
[389021850,1759564252216,-151.0,0.00022191,7]
[389021851,1759564252225,-500.0,0.00022191,3]
[389021852,1759564252234,-220.0,0.00022191,3]
[389021853,1759564252244,-500.0,0.00022191,3]
[389021855,1759564252253,-276.21038561,0.00022191,3]
[389021857,1759564252262,-295.76331602,0.00022191,3]
[389021859,1759564252271,-500.0,0.00022191,3]
[389021861,1759564252281,-860.57,0.00022191,3]
[389021863,1759564252291,-997.39,0.00022191,3]
[389021865,1759564252299,-500.0,0.00022191,3]
[389021867,1759564252309,-500.0,0.00022191,3]
[389021869,1759564252318,-1305.06,0.00022191,3]
[389021871,1759564252327,-345.42620092,0.00022191,3]
[389021873,1759564252336,-680.42,0.00022191,3]
[389021875,1759564252345,-480.95363523,0.00022191,3]
[389021877,1759564252355,-151.0,0.00022191,7]
[389021879,1759564252363,-500.0,0.00022191,3]
[389021881,1759564252372,-4392.21,0.00022191,3]
[389021883,1759564252382,-151.0,0.00022191,7]
[389021885,1759564252392,-500.0,0.00022191,3]
[389021887,1759564252400,-1612.15,0.00022191,3]
[389021889,1759564252411,-304.56344839,0.00022191,3]
[389021891,1759564252420,-500.0,0.00022191,3]
[389021893,1759564252429,-500.0,0.00022191,3]
[389021895,1759564252439,-500.0,0.00022191,3]
[389021897,1759564252448,-500.0,0.00022191,3]
[389021899,1759564252457,-500.0,0.00022191,3]
[389021900,1759564252466,-999.28,0.00022191,3]
[389021902,1759564252475,-1025.09,0.00022191,3]
[389021904,1759564252485,-500.0,0.00022191,3]
[389021906,1759564252494,-9186.69,0.00022191,3]
[389021909,1759564252504,-500.0,0.00022191,3]
[389021911,1759564252513,-538.31,0.00022191,3]
[389021912,1759564252523,-500.0,0.00022191,3]
[389021914,1759564252532,-151.0,0.00022191,7]
[389021916,1759564252541,-960.57,0.00022191,3]
[389021918,1759564252550,-1742.62,0.00022191,3]
[389021920,1759564252559,-725.16,0.00022191,3]
[389021922,1759564252569,-151.0,0.00022191,7]
[389021924,1759564252578,-151.0,0.00022191,7]
[389021926,1759564252587,-151.0,0.00022191,7]
[389021929,1759564252597,-653.43,0.00022191,3]
[389021930,1759564252606,-422.36910222,0.00022191,3]
[389021932,1759564252615,-500.0,0.00022191,3]
[389021935,1759564252625,-500.0,0.00022191,3]
[389021937,1759564252635,-500.0,0.00022191,3]
[389021939,1759564252644,-500.0,0.00022191,3]
[389021940,1759564252653,-500.0,0.00022191,3]
[389021943,1759564252663,-1641.93,0.00022191,3]
[389021944,1759564252672,-1738.11,0.00022191,3]
[389021946,1759564252681,-500.0,0.00022191,3]
[389021948,1759564252692,-500.0,0.00022191,3]
[389021950,1759564252703,-500.0,0.00022191,3]
[389021952,1759564252712,-1202.47,0.00022191,3]
[389021954,1759564252722,-5590.36,0.00022191,3]
[389021956,1759564252731,-500.0,0.00022191,3]
[389021958,1759564252740,-500.0,0.00022191,3]
[389021960,1759564252749,-1096.59,0.00022191,3]
[389021962,1759564252759,-2930.33,0.00022191,3]
[389021964,1759564252769,-6375.37,0.00022191,3]
[389021967,1759564252780,-500.0,0.00022191,3]
[389021968,1759564252790,-500.0,0.00022191,3]
[389021970,1759564252799,-534.77,0.00022191,3]
[389021972,1759564252809,-900.28,0.00022191,3]
[389021975,1759564252819,-433.00232604,0.00022191,3]
[389021977,1759564252829,-1530.18,0.00022191,3]
[389021979,1759564252838,-361.93042546,0.00022191,3]
[389021981,1759564252847,-500.0,0.00022191,3]
[389021983,1759564252858,-500.0,0.00022191,3]
[389021985,1759564252867,-500.0,0.00022191,3]
[389021987,1759564252877,-500.0,0.00022191,3]
[389021989,1759564252885,-500.0,0.00022191,3]
[389021991,1759564252894,-3076.21,0.00022191,3]
[389021993,1759564252903,-571.99,0.00022191,3]
[389021995,1759564252912,-151.0,0.00022191,7]
[389021997,1759564252922,-500.0,0.00022191,3]
[389021998,1759564252931,-151.0,0.00022191,7]
[389022001,1759564252941,-151.0,0.00022191,7]
[389022003,1759564252950,-672.87,0.00022191,3]
[389022004,1759564252960,-500.0,0.00022191,3]
[389022007,1759564252969,-151.0,0.00022191,7]
[389022009,1759564252979,-1110.62,0.00022191,3]
[389022011,1759564252988,-3894.51,0.00022191,3]
[389022013,1759564252997,-500.0,0.00022191,3]
[389022015,1759564253007,-500.0,0.00022191,3]
[389022017,1759564253016,-500.0,0.00022191,3]
[389022019,1759564253026,-500.0,0.00022191,3]
[389022021,1759564253035,-3231.64,0.00022191,3]
[389022023,1759564253045,-500.0,0.00022191,3]
[389022025,1759564253054,-500.0,0.00022191,3]
[389022027,1759564253063,-500.0,0.00022191,3]
[389022029,1759564253073,-151.0,0.00022191,7]
[389022031,1759564253082,-500.0,0.00022191,3]
[389022033,1759564253091,-500.0,0.00022191,3]
[389022035,1759564253100,-500.0,0.00022191,3]
[389022037,1759564253110,-585.4,0.00022191,3]
[389022039,1759564253120,-151.0,0.00022191,7]
[389022041,1759564253129,-151.0,0.00022191,7]
[389022043,1759564253138,-5653.57,0.00022191,3]
[389022045,1759564253147,-199.03088874,0.00022191,3]
[389022047,1759564253156,-500.0,0.00022191,3]
[389022049,1759564253165,-500.0,0.00022191,3]
[389022051,1759564253174,-500.0,0.00022191,3]
[389022053,1759564253183,-261.41,0.00022191,3]
[389022055,1759564253192,-4490.410758,0.00022191,7]
[389022057,1759564253202,-500.0,0.00022191,3]
[389022059,1759564253211,-526.48,0.00022191,3]
[389022061,1759564253222,-538.08585052,0.00022191,3]
[389022063,1759564253231,-4490.410758,0.00022191,7]
[389022065,1759564253241,-4490.410758,0.00022191,7]
[389022066,1759564253250,-4490.410758,0.00022191,7]
[389022068,1759564253259,-500.0,0.0002226,5]
[389022070,1759564253268,-168.0,0.00022272,2]
[389022072,1759564253277,-3683.0,0.00022322,2]
[389022075,1759564253287,-5154.93687276,0.00022365,2]
[389022076,1759564253296,-200.0,0.00022464,2]
[389022078,1759564253305,-201.13072027,0.00022464,2]
[389022080,1759564253315,-200.0,0.00022464,2]
[389022083,1759564253324,-293.52280873,0.00022465,3]
[389022085,1759564253334,-500.0,0.00022465,3]
[389022087,1759564253343,-500.0,0.00022465,3]
[389022088,1759564253353,-204.77889609,0.00022465,3]
[389022090,1759564253362,-500.0,0.00022465,3]
[389022092,1759564253372,-1319.42,0.00022465,3]
[389022094,1759564253381,-462.7344322,0.00022465,3]
[389022096,1759564253390,-899.2,0.00022465,3]
[389022098,1759564253400,-500.0,0.00022465,3]
[389022100,1759564253409,-500.0,0.00022465,3]
[389022102,1759564253418,-500.0,0.00022465,3]
[389022104,1759564253427,-1282.94,0.00022465,3]
[389022106,1759564253436,-394.44028713,0.00022465,3]
[389022107,1759564253445,-500.0,0.00022465,3]
[389022109,1759564253455,-500.0,0.00022465,3]
[389022111,1759564253464,-500.0,0.00022465,3]
[389022113,1759564253474,-500.0,0.00022465,3]
[389022115,1759564253483,-500.0,0.00022465,3]
[389022117,1759564253492,-500.0,0.00022465,3]
[389022119,1759564253502,-500.0,0.00022465,3]
[389022121,1759564253512,-500.0,0.00022465,3]
[389022123,1759564253521,-500.0,0.00022465,3]
[389022125,1759564253530,-538.33,0.00022465,3]
[389022127,1759564253540,-624.93,0.00022465,3]
[389022129,1759564253549,-500.0,0.00022465,3]
[389022131,1759564253559,-150.3970493,0.00022465,3]
[389031560,1759564536861,226.049787,0.00016438,2]
[389031658,1759565421734,155.026,0.00028767,120]
[389031741,1759565438045,-168.0,0.00020623,2]
[389031742,1759565438055,-168.0,0.00020862,2]
[389031743,1759565438065,-168.0,0.00020889,2]
[389031745,1759565438075,-168.0,0.00021203,2]
[389031747,1759565438085,-168.0,0.00021291,2]
[389031749,1759565438094,-168.0,0.00021306,2]
[389031751,1759565438104,-250.0,0.00021373,2]
[389031753,1759565438114,-168.0,0.00021509,2]
[389031755,1759565438124,-300.0,0.00021642,2]
[389031757,1759565438134,-358.74495591,0.00021643,2]
[389031759,1759565438144,-889.55078121,0.00021643,2]
[389031761,1759565438154,-3159.05803054,0.00021643,2]
[389031763,1759565438164,-684.62802372,0.0002179,2]
[389031765,1759565438174,-10000.0,0.00021817,2]
[389031767,1759565438185,-359.09216723,0.00021817,2]
[389031769,1759565438195,-382.10355029,0.00021817,2]
[389031771,1759565438204,-168.0,0.00021839,2]
[389031773,1759565438214,-358.62,0.00021907,3]
[389031775,1759565438224,-179.31,0.00021907,3]
[389031777,1759565438234,-537.95,0.00021907,3]
[389031779,1759565438244,-1373.22,0.00021907,10]
[389031781,1759565438253,-238.43082032,0.00021916,2]
[389031783,1759565438263,-176.48576583,0.00021916,2]
[389031785,1759565438273,-500.0,0.00021917,2]
[389031787,1759565438284,-622.5356956,0.00021917,2]
[389031789,1759565438293,-500.0,0.00021917,2]
[389031792,1759565438303,-500.0,0.00021917,2]
[389031794,1759565438313,-500.0,0.00021917,2]
[389031796,1759565438322,-500.0,0.00021917,2]
[389031798,1759565438336,-500.0,0.00021917,2]
[389031800,1759565438346,-636.18984814,0.00021917,2]
[389031802,1759565438355,-500.0,0.00021917,2]
[389031804,1759565438365,-500.0,0.00021917,2]
[389031806,1759565438376,-500.0,0.00021917,2]
[389031808,1759565438387,-283.83524515,0.00021917,2]
[389031810,1759565438397,-500.0,0.00021917,2]
[389031812,1759565438407,-500.0,0.00021917,2]
[389031814,1759565438417,-532.01,0.00021917,2]
[389031836,1759565438681,-534.24,0.00021917,2]
[389031837,1759565438691,-1018.07,0.00021917,2]
[389031838,1759565438702,-500.0,0.00021917,2]
[389031839,1759565438712,-500.0,0.00021917,2]
[389031840,1759565438721,-500.0,0.00021917,2]
[389031841,1759565438731,-500.0,0.00021917,2]
[389031842,1759565438740,-500.0,0.00021917,2]
[389031843,1759565438750,-1332.45,0.00021917,2]
[389031844,1759565438761,-500.0,0.00021917,2]
[389031845,1759565438771,-500.0,0.00021917,2]
[389031846,1759565438780,-500.0,0.00021917,2]
[389031847,1759565438790,-500.0,0.00021917,2]
[389031848,1759565438799,-500.0,0.00021917,2]
[389031849,1759565438808,-500.0,0.00021917,2]
[389031850,1759565438817,-500.0,0.00021917,2]
[389031851,1759565438827,-1624.84,0.00021917,2]
[389031852,1759565438836,-500.0,0.00021917,2]
[389031853,1759565438845,-500.0,0.00021917,2]
[389031854,1759565438854,-500.0,0.00021917,2]
[389031855,1759565438864,-400.0,0.00021917,2]
[389031856,1759565438873,-500.0,0.00021917,2]
[389031857,1759565438883,-500.0,0.00021917,2]
[389031858,1759565438895,-500.0,0.00021917,2]
[389031859,1759565438904,-880.52,0.00021917,2]
[389031860,1759565438913,-500.0,0.00021917,2]
[389031861,1759565438923,-500.0,0.00021917,2]
[389031862,1759565438932,-500.0,0.00021917,2]
[389031863,1759565438941,-500.0,0.00021917,2]
[389031864,1759565438950,-500.0,0.00021917,2]
[389031865,1759565438960,-500.0,0.00021917,2]
[389031866,1759565438969,-500.0,0.00021917,2]
[389031867,1759565438980,-500.0,0.00021917,2]
[389031868,1759565438989,-500.0,0.00021917,2]
[389031869,1759565438998,-500.0,0.00021917,2]
[389031870,1759565439007,-562.79987064,0.00021917,2]
[389031871,1759565439016,-500.0,0.00021917,2]
[389031872,1759565439026,-500.0,0.00021917,2]
[389031873,1759565439036,-500.0,0.00021917,2]
[389031874,1759565439045,-241.66657063,0.00021917,2]
[389031875,1759565439055,-500.0,0.00021917,2]
[389031876,1759565439064,-500.0,0.00021917,2]
[389031877,1759565439074,-1112.8,0.00021917,2]
[389031878,1759565439084,-500.0,0.00021917,2]
[389031879,1759565439094,-1000.0,0.00021917,2]
[389031880,1759565439103,-500.0,0.00021917,2]
[389031881,1759565439112,-500.0,0.00021917,2]
[389031882,1759565439122,-500.0,0.00021917,2]
[389031883,1759565439132,-500.0,0.00021917,2]
[389031884,1759565439142,-500.0,0.00021917,2]
[389031885,1759565439151,-500.0,0.00021917,2]
[389031886,1759565439160,-494.10982645,0.00021917,2]
[389031887,1759565439170,-547.04,0.00021917,2]
[389031888,1759565439179,-663.48,0.00021917,2]
[389031889,1759565439188,-500.0,0.00021917,2]
[389031890,1759565439198,-500.0,0.00021917,2]
[389031891,1759565439208,-882.26,0.00021917,2]
[389031892,1759565439217,-500.0,0.00021917,2]
[389031893,1759565439226,-500.0,0.00021917,2]
[389031894,1759565439235,-616.58,0.00021917,2]
[389031895,1759565439244,-500.0,0.00021917,2]
[389031896,1759565439253,-402.14390862,0.00021917,2]
[389031897,1759565439263,-632.46,0.00021917,2]
[389031898,1759565439273,-446.15340862,0.00021917,2]
[389031899,1759565439283,-500.0,0.00021917,2]
[389031900,1759565439292,-500.0,0.00021917,2]
[389031901,1759565439301,-500.0,0.00021917,2]
[389031903,1759565439312,-500.0,0.00021917,2]
[389031904,1759565439322,-1623.91,0.00021917,2]
[389031905,1759565439335,-623.72,0.00021917,2]
[389031906,1759565439344,-500.0,0.00021917,2]
[389031907,1759565439353,-500.0,0.00021917,2]
[389031908,1759565439363,-500.0,0.00021917,2]
[389031909,1759565439375,-500.0,0.00021917,2]
[389031910,1759565439385,-500.0,0.00021917,2]
[389031911,1759565439395,-500.0,0.00021917,2]
[389031912,1759565439406,-90.00059364,0.00021917,2]
[389031913,1759565439422,-270.03876602,0.00021917,2]
[389031914,1759565439434,-630.72064034,0.00021917,2]
[389031915,1759565439444,-500.0,0.00021917,2]
[389031916,1759565439453,-609.58059364,0.00021917,2]
[389031964,1759565439969,-256.20940636,0.00021917,2]
[389031966,1759565439980,-349.77196896,0.00021917,2]
[389032357,1759565445929,-150.22803104,0.00021917,2]
[389032359,1759565445938,-500.0,0.00021917,2]
[389032361,1759565445948,-500.0,0.00021917,2]
[389032362,1759565445958,-500.0,0.00021917,2]
[389032364,1759565445967,-500.0,0.00021917,2]
[389032366,1759565445975,-500.0,0.00021917,2]
[389032368,1759565445985,-567.19704401,0.00021917,2]
[389032370,1759565445994,-500.0,0.00021917,2]
[389032372,1759565446003,-482.80954271,0.00021917,2]
[389032374,1759565446012,-144.16188008,0.00021917,2]
[389032376,1759565446023,-815.39811992,0.00021917,2]
[389032378,1759565446032,-596.54,0.00021917,2]
[389032379,1759565446042,-797.1562385,0.00021917,2]
[389032380,1759565446139,-197.0037615,0.00021917,2]
[389032382,1759565446148,-716.85,0.00021917,2]
[389032383,1759565446158,-540.95,0.00021917,2]
[389032384,1759565446166,-685.57,0.00021917,2]
[389032385,1759565446184,-159.6262385,0.00021917,2]
[389032488,1759566598714,4547.0,0.00018033,2]
[389032489,1759566603172,13169.0,0.00024658,120]
[389032490,1759566628643,4757.86282618,0.00018033,2]
[389032575,1759566632587,-303.00000303,0.000189,2]
[389032577,1759566632597,-265.87999697,0.00019089,2]
[389032914,1759566637893,-170.51996482,0.00019089,2]
[389032915,1759566637903,-5000.0,0.00019178,2]
[389032916,1759566637917,-300.0,0.00019998,2]
[389032917,1759566637926,-448.79093461,0.00019999,2]
[389032918,1759566637935,-500.0,0.00019999,2]
[389032919,1759566637945,-366.88122184,0.0002,2]
[389032920,1759566637954,-4038.6835485,0.0002,2]
[389032921,1759566637964,-68974.06897678,0.0002,2]
[389032922,1759566637973,-500.0,0.0002,2]
[389032923,1759566637982,-500.0,0.0002,2]
[389032924,1759566637992,-558.4026309,0.0002,2]
[389032925,1759566638001,-500.0,0.0002,2]
[389032926,1759566638010,-500.0,0.0002,2]
[389032927,1759566638020,-500.44687535,0.0002,2]
[389032928,1759566638029,-503.41911188,0.0002,2]
[389032929,1759566638039,-500.0,0.0002,2]
[389032930,1759566638048,-500.0,0.0002,2]
[389032931,1759566638058,-500.0,0.0002,2]
[389032932,1759566638067,-500.0,0.0002,2]
[389032933,1759566638077,-500.0,0.0002,2]
[389032934,1759566638086,-500.0,0.0002,2]
[389032935,1759566638095,-500.0,0.0002,2]
[389032936,1759566638105,-500.0,0.0002,2]
[389032937,1759566638115,-500.0,0.0002,2]
[389032938,1759566638125,-500.0,0.0002,2]
[389032939,1759566638136,-335.46005001,0.00020299,2]
[389032940,1759566638146,-225.71846308,0.00020299,2]
[389032941,1759566638156,-11799.58728372,0.000203,2]
[389032943,1759566638166,-500.0,0.000205,2]
[389032945,1759566638175,-1000.0,0.00020548,2]
[389032947,1759566638184,-1000.0,0.00020548,2]
[389032949,1759566638194,-1000.0,0.00020548,2]
[389032951,1759566638204,-1000.0,0.00020548,2]
[389032953,1759566638213,-500.0,0.00020548,2]
[389032955,1759566638223,-1047.67995103,0.00020548,2]
[389032957,1759566638232,-1000.0,0.00020548,2]
[389032959,1759566638242,-1000.0,0.00020548,2]
[389032961,1759566638251,-1000.0,0.00020548,2]
[389032963,1759566638260,-1000.0,0.00020548,2]
[389032965,1759566638269,-1000.0,0.00020548,2]
[389032967,1759566638279,-1000.0,0.00020548,2]
[389032969,1759566638288,-1000.0,0.00020548,2]
[389032971,1759566638297,-1000.0,0.00020548,2]
[389032973,1759566638306,-492.0,0.00020698,2]
[389032975,1759566638315,-334.34060646,0.000209,2]
[389032977,1759566638324,-195.80352881,0.000209,2]
[389032979,1759566638333,-151.0,0.00020977,2]
[389032981,1759566638342,-151.0,0.00020977,2]
[389032983,1759566638352,-151.0,0.00020977,2]
[389032985,1759566638360,-151.0,0.00020977,2]
[389032987,1759566638369,-151.0,0.00020977,2]
[389032989,1759566638379,-151.0,0.00020977,2]
[389032991,1759566638388,-151.0,0.00020977,2]
[389032993,1759566638397,-151.0,0.00020977,2]
[389032995,1759566638405,-152.58173525,0.00020977,2]
[389032997,1759566638414,-500.0,0.00020978,2]
[389032999,1759566638424,-100000.0,0.0002099,2]
[389033001,1759566638433,-977.66,0.00021,2]
[389033003,1759566638443,-1000.0,0.00021048,2]
[389033005,1759566638454,-1500.0,0.00021096,2]
[389033007,1759566638466,-388.52010134,0.00021096,2]
[389033009,1759566638475,-1500.0,0.00021096,2]
[389033011,1759566638485,-512.6705584,0.00021096,2]
[389033013,1759566638494,-291.53893252,0.00021096,2]
[389033015,1759566638504,-1500.0,0.00021096,2]
[389033017,1759566638513,-1500.0,0.00021096,2]
[389033019,1759566638521,-500.0,0.00021096,2]
[389033021,1759566638530,-315.40061812,0.00021096,2]
[389033022,1759566638539,-1500.0,0.00021096,2]
[389033024,1759566638548,-1500.0,0.00021096,2]
[389033025,1759566638557,-195.80352878,0.00021129,2]
[389033026,1759566638567,-500.0,0.00021252,2]
[389033027,1759566638577,-168.0,0.00021325,2]
[389033028,1759566638586,-195.80352878,0.00021359,2]
[389033029,1759566638595,-168.0,0.00021414,2]
[389033030,1759566638604,-168.0,0.00021433,2]
[389033031,1759566638614,-168.0,0.00021499,2]
[389033032,1759566638623,-559.8060411,0.000215,2]
[389033033,1759566638632,-6133.23786908,0.000215,2]
[389033034,1759566638641,-500.0,0.00021525,2]
[389033035,1759566638650,-272.54604093,0.00021534,2]
[389033036,1759566638659,-5000.0,0.00021564,2]
[389033037,1759566638670,-195.80352878,0.00021588,2]
[389033038,1759566638681,-1594.26049002,0.00021596,2]
[389033039,1759566638689,-2000.0,0.00021644,2]
[389033040,1759566638698,-1240.90037639,0.00021644,2]
[389033041,1759566638708,-2000.0,0.00021644,2]
[389033042,1759566638717,-2000.0,0.00021644,2]
[389033043,1759566638726,-1869.78176467,0.00021644,2]
[389033044,1759566638735,-2000.0,0.00021644,2]
[389033045,1759566638745,-3914.90559573,0.00021717,2]
[389033046,1759566638754,-539.94935797,0.00021739,2]
[389033047,1759566638763,-168.0,0.00021767,2]
[389033048,1759566638773,-420.0,0.00021776,2]
[389033049,1759566638782,-500.0,0.00021799,2]
[389033050,1759566638791,-179.31,0.00021807,3]
[389033051,1759566638801,-537.93,0.00021807,3]
[389033053,1759566638810,-370000.0,0.00021817,2]
[389033055,1759566638820,-3315.36455725,0.00021817,2]
[389033057,1759566638829,-195.80352878,0.00021817,2]
[389033059,1759566638838,-334.34060645,0.00021834,2]
[389033061,1759566638847,-380.14,0.00021917,2]
[389033063,1759566638857,-500.0,0.00021917,2]
[389033065,1759566638867,-500.0,0.00021917,2]
[389033067,1759566638877,-500.0,0.00021917,2]
[389033069,1759566638888,-188.78798777,0.00021917,2]
[389033071,1759566638898,-513.4710178,0.00021917,2]
[389033073,1759566638909,-500.0,0.00021917,2]
[389033075,1759566638919,-1434.97982365,0.00021917,2]
[389033077,1759566638928,-500.0,0.00021917,2]
[389033079,1759566638938,-500.0,0.00021917,2]
[389033081,1759566638948,-500.0,0.00021917,2]
[389033083,1759566638958,-178.54979957,0.00021917,2]
[389033085,1759566638968,-2173.87,0.00021917,2]
[389033087,1759566638978,-2047.9807066,0.00021917,2]
[389033089,1759566638988,-825.26,0.00021917,2]
[389033091,1759566638997,-500.0,0.00021917,2]
[389033093,1759566639007,-500.0,0.00021917,2]
[389033094,1759566639016,-500.0,0.00021917,2]
[389033097,1759566639028,-500.0,0.00021917,2]
[389033099,1759566639037,-500.0,0.00021917,2]
[389033101,1759566639048,-3265.6147847,0.00021917,2]
[389033102,1759566639057,-500.0,0.00021917,2]
[389033104,1759566639067,-500.0,0.00021917,2]
[389033105,1759566639076,-500.0,0.00021917,2]
[389033107,1759566639086,-720.48,0.00021917,2]
[389033109,1759566639095,-220.44024266,0.00021917,2]
[389033111,1759566639105,-1477.76,0.00021917,2]
[389033113,1759566639115,-518.41,0.00021917,2]
[389033115,1759566639126,-408.67033245,0.00021917,2]
[389033117,1759566639135,-500.0,0.00021917,2]
[389033118,1759566639144,-500.0,0.00021917,2]
[389033120,1759566639153,-500.0,0.00021917,2]
[389033122,1759566639163,-500.0,0.00021917,2]
[389033124,1759566639174,-500.0,0.00021917,2]
[389033126,1759566639183,-500.0,0.00021917,2]
[389033128,1759566639193,-500.0,0.00021917,2]
[389033130,1759566639204,-500.0,0.00021917,2]
[389033132,1759566639215,-500.0,0.00021917,2]
[389033134,1759566639225,-635.92576878,0.00021917,2]
[389033135,1759566639235,-500.0,0.00021917,2]
[389033136,1759566639245,-500.0,0.00021917,2]
[389033138,1759566639254,-500.0,0.00021917,2]
[389033140,1759566639263,-500.0,0.00021917,2]
[389033142,1759566639273,-606.43,0.00021917,2]
[389033144,1759566639282,-500.0,0.00021917,2]
[389033146,1759566639292,-778.7,0.00021917,2]
[389033148,1759566639301,-567.45,0.00021917,2]
[389033150,1759566639310,-500.0,0.00021917,2]
[389033152,1759566639319,-500.0,0.00021917,2]
[389033154,1759566639333,-500.0,0.00021917,2]
[389033156,1759566639342,-3225.47589861,0.00021917,2]
[389033158,1759566639352,-500.0,0.00021917,2]
[389033160,1759566639361,-500.0,0.00021917,2]
[389033162,1759566639371,-500.0,0.00021917,2]
[389033164,1759566639381,-500.0,0.00021917,2]
[389033166,1759566639391,-500.0,0.00021917,2]
[389033168,1759566639400,-500.0,0.00021917,2]
[389033170,1759566639409,-500.0,0.00021917,2]
[389033172,1759566639417,-351.32756265,0.00021917,2]
[389033174,1759566639427,-500.0,0.00021917,2]
[389033176,1759566639436,-500.0,0.00021917,2]
[389033178,1759566639445,-500.0,0.00021917,2]
[389033180,1759566639455,-500.0,0.00021917,2]
[389033182,1759566639464,-500.0,0.00021917,2]
[389033184,1759566639472,-500.0,0.00021917,2]
[389033186,1759566639481,-1117.29,0.00021917,2]
[389033188,1759566639490,-504.04,0.00021917,2]
[389033190,1759566639499,-500.0,0.00021917,2]
[389033191,1759566639508,-500.0,0.00021917,2]
[389033193,1759566639518,-500.0,0.00021917,2]
[389033195,1759566639527,-500.0,0.00021917,2]
[389033198,1759566639537,-151.0,0.00021917,2]
[389033200,1759566639546,-500.0,0.00021917,2]
[389033203,1759566639555,-500.0,0.00021917,2]
[389033205,1759566639565,-500.0,0.00021917,2]
[389033226,1759566639744,-500.0,0.00021917,2]
[389033228,1759566639754,-151.0,0.00021917,2]
[389033230,1759566639763,-414.19280358,0.00021917,2]
[389033232,1759566639772,-645.05,0.00021917,2]
[389033234,1759566639781,-500.0,0.00021917,2]
[389033236,1759566639790,-500.0,0.00021917,2]
[389033238,1759566639799,-343.42999065,0.00021917,2]
[389033240,1759566639809,-500.0,0.00021917,2]
[389033242,1759566639818,-500.0,0.00021917,2]
[389033244,1759566639827,-500.0,0.00021917,2]
[389033246,1759566639838,-500.0,0.00021917,2]
[389033248,1759566639851,-500.0,0.00021917,2]
[389033250,1759566639860,-500.0,0.00021917,2]
[389033252,1759566639870,-500.0,0.00021917,2]
[389033254,1759566639879,-819.69,0.00021917,2]
[389033256,1759566639889,-500.0,0.00021917,2]
[389033258,1759566639898,-500.0,0.00021917,2]
[389033260,1759566639910,-500.0,0.00021917,2]
[389033262,1759566639920,-3554.64492173,0.00021917,2]
[389033264,1759566639929,-500.0,0.00021917,2]
[389033266,1759566639939,-500.0,0.00021917,2]
[389033268,1759566639948,-778.86,0.00021917,2]
[389033270,1759566639957,-483.0166451,0.00021917,2]
[389033272,1759566639968,-500.0,0.00021917,2]
[389033274,1759566639977,-568.14,0.00021917,2]